[Event "*** Titled Tuesday Blitz"]
[Site "Chess.com"]
[Date "2019.04.02"]
[Round "5"]
[White "Vusatiuk_Vladimir"]
[Black "Caterpiller35"]
[Result "1-0"]
[WhiteElo "2182"]
[BlackElo "2214"]
[TimeControl "180+2"]
[EndTime "15:06:54 PDT"]
[Termination "Vusatiuk_Vladimir won by resignation"]

1. e4 {[%clk 0:03:00.2]} 1... c5 {[%clk 0:03:00.3]} 2. Nf3 {[%clk 0:02:59.8]}
2... g6 {[%clk 0:03:01.3]} 3. d4 {[%clk 0:02:59.7]} 3... cxd4 {[%clk 0:03:03.2]}
4. Qxd4 {[%clk 0:03:01]} 4... Nf6 {[%clk 0:03:04.3]} 5. Nc3 {[%clk 0:03:02.5]}
5... Nc6 {[%clk 0:03:05.5]} 6. Qa4 {[%clk 0:03:02.6]} 6... d6 {[%clk 0:03:06.7]}
7. e5 {[%clk 0:02:55.6]} 7... dxe5 {[%clk 0:03:08.6]} 8. Nxe5 {[%clk 0:02:56]}
8... Bd7 {[%clk 0:03:10.1]} 9. Nxd7 {[%clk 0:02:54.4]} 9... Nxd7 {[%clk
0:03:12]} 10. Bb5 {[%clk 0:02:53.1]} 10... Bg7 {[%clk 0:03:12.7]} 11. Bd2 {[%clk
0:02:51.2]} 11... O-O {[%clk 0:03:13.1]} 12. Bxc6 {[%clk 0:02:44]} 12... Nb6
{[%clk 0:03:13.9]} 13. Qe4 {[%clk 0:02:31.2]} 13... bxc6 {[%clk 0:03:13.2]} 14.
Rd1 {[%clk 0:02:30.2]} 14... Nd5 {[%clk 0:03:03.2]} 15. O-O {[%clk 0:02:28.3]}
15... Rb8 {[%clk 0:03:01.5]} 16. Na4 {[%clk 0:02:01.8]} 16... Nf6 {[%clk
0:02:43.2]} 17. Qc4 {[%clk 0:01:50.7]} 17... Qd5 {[%clk 0:02:41.4]} 18. Qxd5
{[%clk 0:01:36.9]} 18... cxd5 {[%clk 0:02:43.3]} 19. Bc3 {[%clk 0:01:31.2]}
19... e6 {[%clk 0:02:41.2]} 20. Nc5 {[%clk 0:01:29.2]} 20... Rfc8 {[%clk
0:02:38.4]} 21. Nd3 {[%clk 0:01:06.6]} 21... Ne4 {[%clk 0:02:28.6]} 22. Bxg7
{[%clk 0:01:07.3]} 22... Kxg7 {[%clk 0:02:30.5]} 23. c3 {[%clk 0:01:08]} 23...
a5 {[%clk 0:02:28.1]} 24. f3 {[%clk 0:01:05.9]} 24... Nd6 {[%clk 0:02:28.8]} 25.
Rf2 {[%clk 0:00:43.2]} 25... Nc4 {[%clk 0:02:25.4]} 26. a4 {[%clk 0:00:20.1]}
26... Rb3 {[%clk 0:02:17.4]} 27. Ra1 {[%clk 0:00:20]} 27... Rcb8 {[%clk
0:02:17]} 28. Ra2 {[%clk 0:00:21.6]} 28... e5 {[%clk 0:01:58.9]} 29. Re2 {[%clk
0:00:21.1]} 29... f6 {[%clk 0:01:59.1]} 30. Kf1 {[%clk 0:00:12.5]} 30... Kf7
{[%clk 0:01:52.3]} 31. Ke1 {[%clk 0:00:12]} 31... h5 {[%clk 0:01:46.2]} 32. Kd1
{[%clk 0:00:12.5]} 32... h4 {[%clk 0:01:47.4]} 33. Kc1 {[%clk 0:00:12.7]} 33...
g5 {[%clk 0:01:39.1]} 34. Nc5 {[%clk 0:00:13.5]} 34... R3b6 {[%clk 0:01:30.4]}
35. Nd7 {[%clk 0:00:14.9]} 35... Ke6 {[%clk 0:01:27.3]} 36. Nxb8 {[%clk
0:00:15.5]} 36... Rxb8 {[%clk 0:01:27.6]} 37. Kc2 {[%clk 0:00:13.9]} 37... Nd6
{[%clk 0:01:24.9]} 38. b3 {[%clk 0:00:12.8]} 38... Rc8 {[%clk 0:01:22.6]} 39.
Kd3 {[%clk 0:00:11.8]} 39... e4+ {[%clk 0:01:19.8]} 40. fxe4 {[%clk 0:00:11.6]}
40... dxe4+ {[%clk 0:01:21.7]} 41. Kd4 {[%clk 0:00:12]} 41... f5 {[%clk
0:01:19.9]} 42. c4 {[%clk 0:00:12.3]} 42... Nf7 {[%clk 0:01:13.9]} 43. g3 {[%clk
0:00:11.7]} 43... hxg3 {[%clk 0:01:10.2]} 44. hxg3 {[%clk 0:00:13.6]} 44... Ne5
{[%clk 0:01:12.1]} 45. Ke3 {[%clk 0:00:10.4]} 45... Ng4+ {[%clk 0:01:08.4]} 46.
Kd4 {[%clk 0:00:11.4]} 46... Rd8+ {[%clk 0:01:09]} 47. Kc5 {[%clk 0:00:12.3]}
47... Rd3 {[%clk 0:01:10]} 48. Rg2 {[%clk 0:00:05.8]} 48... Rxb3 {[%clk
0:01:08.8]} 49. Rab2 {[%clk 0:00:07.4]} 49... Rxb2 {[%clk 0:01:08.8]} 50. Rxb2
{[%clk 0:00:09.3]} 50... Ke5 {[%clk 0:01:10]} 51. Rb8 {[%clk 0:00:09.8]} 51...
f4 {[%clk 0:01:08.6]} 52. gxf4+ {[%clk 0:00:10]} 52... gxf4 {[%clk 0:01:06.1]}
53. Re8+ {[%clk 0:00:10.7]} 53... Kf5 {[%clk 0:01:07.4]} 54. Kd4 {[%clk
0:00:11.9]} 54... e3 {[%clk 0:01:08.3]} 55. c5 {[%clk 0:00:11.4]} 55... f3
{[%clk 0:01:00.8]} 56. c6 {[%clk 0:00:07.2]} 56... f2 {[%clk 0:01:00]} 57. Rf8+
{[%clk 0:00:05]} 57... Nf6 {[%clk 0:00:58.1]} 58. c7 {[%clk 0:00:06.6]} 58...
f1=Q {[%clk 0:00:57.7]} 59. c8=Q+ {[%clk 0:00:08.2]} 59... Kg6 {[%clk
0:00:56.9]} 60. Qg4+ {[%clk 0:00:05.7]} 60... Kh7 {[%clk 0:00:40.8]} 61. Rf7+
{[%clk 0:00:05.7]} 61... Kh6 {[%clk 0:00:38.3]} 62. Qg7+ {[%clk 0:00:06.7]}
62... Kh5 {[%clk 0:00:37.7]} 63. Rxf6 {[%clk 0:00:06.4]} 63... Qa1+ {[%clk
0:00:19.6]} 64. Kxe3 {[%clk 0:00:07.5]} 64... Qc3+ {[%clk 0:00:19.3]} 65. Ke4
{[%clk 0:00:08]} 65... Qc4+ {[%clk 0:00:18.1]} 66. Ke5 {[%clk 0:00:09.2]} 66...
Qe2+ {[%clk 0:00:06.6]} 67. Kd6 {[%clk 0:00:07.2]} 67... Qa6+ {[%clk 0:00:02.2]}
68. Ke7 {[%clk 0:00:07.5]} 68... Qb7+ {[%clk 0:00:03.3]} 69. Kf8 {[%clk
0:00:08.7]} 69... Qc8+ {[%clk 0:00:04.6]} 70. Kf7 {[%clk 0:00:06.7]} 70... Qd7+
{[%clk 0:00:05.7]} 71. Kg8 {[%clk 0:00:08]} 71... Qe8+ {[%clk 0:00:07]} 72. Qf8
{[%clk 0:00:09.4]} 72... Qd7 {[%clk 0:00:04.4]} 73. Qf7+ {[%clk 0:00:10.2]}
73... Kh4 {[%clk 0:00:05.7]} 74. Qxd7 {[%clk 0:00:09.8]} 1-0

[Event "*** Titled Tuesday Blitz"]
[Site "Chess.com"]
[Date "2019.04.02"]
[Round "5"]
[White "Sajkochess"]
[Black "Denis_Palkovich"]
[Result "1-0"]
[WhiteElo "2317"]
[BlackElo "2228"]
[TimeControl "180+2"]
[EndTime "15:06:57 PDT"]
[Termination "Sajkochess won on time"]

1. e4 {[%clk 0:03:01.9]} 1... c6 {[%clk 0:03:00.3]} 2. d4 {[%clk 0:03:01.7]}
2... d5 {[%clk 0:03:00.9]} 3. Nd2 {[%clk 0:03:03.1]} 3... dxe4 {[%clk
0:03:01.7]} 4. Nxe4 {[%clk 0:03:05]} 4... Nf6 {[%clk 0:03:03.2]} 5. Nxf6+ {[%clk
0:03:04.3]} 5... exf6 {[%clk 0:03:04.3]} 6. c3 {[%clk 0:02:57.6]} 6... Bf5
{[%clk 0:03:04.6]} 7. Bd3 {[%clk 0:02:55.3]} 7... Bxd3 {[%clk 0:03:05.5]} 8.
Qxd3 {[%clk 0:02:57.2]} 8... Bd6 {[%clk 0:03:07]} 9. Ne2 {[%clk 0:02:56.6]} 9...
O-O {[%clk 0:03:08]} 10. O-O {[%clk 0:02:56]} 10... Qc7 {[%clk 0:03:08.1]} 11.
g3 {[%clk 0:02:57]} 11... Nd7 {[%clk 0:03:07.5]} 12. Bf4 {[%clk 0:02:56.6]}
12... Rfe8 {[%clk 0:03:08.9]} 13. Bxd6 {[%clk 0:02:54.6]} 13... Qxd6 {[%clk
0:03:09.9]} 14. Rad1 {[%clk 0:02:53.6]} 14... g6 {[%clk 0:03:08.3]} 15. Nf4
{[%clk 0:02:50.9]} 15... f5 {[%clk 0:03:07.3]} 16. Rfe1 {[%clk 0:02:39.4]} 16...
Nf6 {[%clk 0:03:06.4]} 17. f3 {[%clk 0:02:40.2]} 17... Nd5 {[%clk 0:03:05]} 18.
Nxd5 {[%clk 0:02:26.1]} 18... Qxd5 {[%clk 0:03:03.2]} 19. c4 {[%clk 0:02:25.9]}
19... Qd6 {[%clk 0:03:03.5]} 20. Kf2 {[%clk 0:02:16.4]} 20... Rad8 {[%clk
0:03:03.8]} 21. Rxe8+ {[%clk 0:02:15.3]} 21... Rxe8 {[%clk 0:03:05]} 22. Re1
{[%clk 0:02:14.3]} 22... Rd8 {[%clk 0:03:03]} 23. Rd1 {[%clk 0:02:13]} 23... f4
{[%clk 0:03:03.9]} 24. g4 {[%clk 0:01:56.5]} 24... Qf6 {[%clk 0:03:04.5]} 25.
Kg2 {[%clk 0:01:50.1]} 25... c5 {[%clk 0:03:02]} 26. d5 {[%clk 0:01:49.1]} 26...
Qxb2+ {[%clk 0:03:02.7]} 27. Qd2 {[%clk 0:01:47.1]} 27... Qxd2+ {[%clk
0:03:01.2]} 28. Rxd2 {[%clk 0:01:47.8]} 28... Rd6 {[%clk 0:02:50.7]} 29. Kf2
{[%clk 0:01:43.4]} 29... Kf8 {[%clk 0:02:47.2]} 30. Ke2 {[%clk 0:01:43.8]} 30...
Ke7 {[%clk 0:02:47.7]} 31. Kd3 {[%clk 0:01:44.4]} 31... b5 {[%clk 0:02:31.2]}
32. Re2+ {[%clk 0:01:43.5]} 32... Kd7 {[%clk 0:02:25.9]} 33. Re4 {[%clk
0:01:44.1]} 33... g5 {[%clk 0:02:21.6]} 34. Re5 {[%clk 0:01:42.5]} 34... f6
{[%clk 0:02:20.3]} 35. Re2 {[%clk 0:01:41.5]} 35... Ra6 {[%clk 0:01:49.1]} 36.
cxb5 {[%clk 0:01:22.2]} 36... Ra3+ {[%clk 0:01:49.2]} 37. Ke4 {[%clk 0:01:14.1]}
37... Kd6 {[%clk 0:01:50.2]} 38. Kf5 {[%clk 0:01:07.1]} 38... Rxf3 {[%clk
0:01:50.4]} 39. Kxf6 {[%clk 0:01:06.6]} 39... h6 {[%clk 0:01:48.2]} 40. a4
{[%clk 0:00:57.3]} 40... Re3 {[%clk 0:01:46.6]} 41. Rd2 {[%clk 0:00:40.2]} 41...
f3 {[%clk 0:01:46.5]} 42. Rf2 {[%clk 0:00:40.3]} 42... Kxd5 {[%clk 0:01:47]} 43.
Kg6 {[%clk 0:00:40.6]} 43... Ke4 {[%clk 0:01:46.6]} 44. Kxh6 {[%clk 0:00:41.4]}
44... Re2 {[%clk 0:01:46.9]} 45. Rf1 {[%clk 0:00:41.9]} 45... Kf4 {[%clk
0:01:48.1]} 46. h4 {[%clk 0:00:35.1]} 46... gxh4 {[%clk 0:01:48.4]} 47. g5
{[%clk 0:00:36]} 47... Kg3 {[%clk 0:01:42.1]} 48. g6 {[%clk 0:00:34.4]} 48...
Kg2 {[%clk 0:01:43.7]} 49. g7 {[%clk 0:00:32.2]} 49... Re8 {[%clk 0:01:32.4]}
50. Re1 {[%clk 0:00:26.5]} 50... Rb8 {[%clk 0:01:11.5]} 51. Re6 {[%clk
0:00:20.5]} 51... f2 {[%clk 0:01:05.5]} 52. Rg6+ {[%clk 0:00:20.9]} 52... Kh2
{[%clk 0:01:05.7]} 53. Rf6 {[%clk 0:00:21.8]} 53... Rb6 {[%clk 0:00:28.8]} 54.
Rxb6 {[%clk 0:00:12.1]} 54... axb6 {[%clk 0:00:18]} 55. g8=Q {[%clk 0:00:11.7]}
55... f1=Q {[%clk 0:00:19.2]} 56. Qb8+ {[%clk 0:00:10.2]} 56... Kg1 {[%clk
0:00:11.6]} 57. Qxb6 {[%clk 0:00:10.2]} 57... h3 {[%clk 0:00:08.3]} 58. Qxc5+
{[%clk 0:00:10.9]} 58... Qf2 {[%clk 0:00:09.2]} 59. Qg5+ {[%clk 0:00:08.8]}
59... Qg2 {[%clk 0:00:07.9]} 60. Qc1+ {[%clk 0:00:08.7]} 60... Qf1 {[%clk
0:00:06.9]} 61. Qg5+ {[%clk 0:00:08.3]} 61... Kh1 {[%clk 0:00:07.6]} 62. Qd5+
{[%clk 0:00:08.1]} 62... Kg1 {[%clk 0:00:06.9]} 63. Qg5+ {[%clk 0:00:08]} 63...
Kf2 {[%clk 0:00:07.7]} 64. Qf4+ {[%clk 0:00:08.5]} 64... Ke1 {[%clk 0:00:08.7]}
65. Qe3+ {[%clk 0:00:08.7]} 65... Kd1 {[%clk 0:00:08.4]} 66. Qb3+ {[%clk
0:00:06.8]} 66... Kd2 {[%clk 0:00:08.9]} 67. Qb2+ {[%clk 0:00:07.3]} 67... Kd3
{[%clk 0:00:09.4]} 68. b6 {[%clk 0:00:07.9]} 68... Qf4+ {[%clk 0:00:07.5]} 69.
Kg6 {[%clk 0:00:07.9]} 69... Qe4+ {[%clk 0:00:05.1]} 70. Kf6 {[%clk 0:00:05.1]}
70... Qf4+ {[%clk 0:00:02.8]} 71. Ke6 {[%clk 0:00:04.4]} 1-0

[Event "*** Titled Tuesday Blitz"]
[Site "Chess.com"]
[Date "2019.04.02"]
[Round "5"]
[White "effefe"]
[Black "albano87"]
[Result "1-0"]
[WhiteElo "2270"]
[BlackElo "2287"]
[TimeControl "180+2"]
[EndTime "15:07:51 PDT"]
[Termination "effefe won by resignation"]

1. d4 {[%clk 0:03:01.9]} 1... d5 {[%clk 0:03:00.7]} 2. c4 {[%clk 0:03:00.6]}
2... e6 {[%clk 0:03:01.8]} 3. Nc3 {[%clk 0:03:00.8]} 3... Nf6 {[%clk 0:03:03.1]}
4. Nf3 {[%clk 0:03:01.4]} 4... Be7 {[%clk 0:03:04.2]} 5. Bg5 {[%clk 0:03:01.7]}
5... O-O {[%clk 0:03:05.6]} 6. e3 {[%clk 0:03:02.9]} 6... b6 {[%clk 0:03:06.7]}
7. cxd5 {[%clk 0:03:03.4]} 7... exd5 {[%clk 0:03:08.3]} 8. Bd3 {[%clk
0:03:02.7]} 8... Nbd7 {[%clk 0:03:09.5]} 9. Rc1 {[%clk 0:03:02.1]} 9... Bb7
{[%clk 0:03:09.6]} 10. O-O {[%clk 0:03:01]} 10... c5 {[%clk 0:03:09.9]} 11. Bb1
{[%clk 0:02:56.7]} 11... Ne4 {[%clk 0:03:00.6]} 12. Bxe7 {[%clk 0:02:46.5]}
12... Qxe7 {[%clk 0:03:02.5]} 13. Qd3 {[%clk 0:02:26.5]} 13... Ndf6 {[%clk
0:02:45.5]} 14. dxc5 {[%clk 0:02:19.4]} 14... bxc5 {[%clk 0:02:43.2]} 15. Qb5
{[%clk 0:02:11.2]} 15... Rab8 {[%clk 0:02:26.5]} 16. Qa5 {[%clk 0:02:09.2]}
16... Bc6 {[%clk 0:02:10.2]} 17. b3 {[%clk 0:02:00.1]} 17... Rfd8 {[%clk
0:02:06.5]} 18. Nxe4 {[%clk 0:01:56.2]} 18... Nxe4 {[%clk 0:02:03.1]} 19. Bxe4
{[%clk 0:01:51.1]} 19... dxe4 {[%clk 0:02:03]} 20. Qxc5 {[%clk 0:01:43.8]} 20...
Qxc5 {[%clk 0:02:03.2]} 21. Rxc5 {[%clk 0:01:44.5]} 21... Bb5 {[%clk 0:02:01.2]}
22. Nd4 {[%clk 0:01:33.6]} 22... Bxf1 {[%clk 0:02:01.5]} 23. Kxf1 {[%clk
0:01:31]} 23... Rbc8 {[%clk 0:01:58.9]} 24. Ra5 {[%clk 0:01:29.1]} 24... Rc7
{[%clk 0:01:56.9]} 25. Ke2 {[%clk 0:01:28.3]} 25... g6 {[%clk 0:01:52.9]} 26.
Kd2 {[%clk 0:01:29.4]} 26... h5 {[%clk 0:01:53.2]} 27. Re5 {[%clk 0:01:27.7]}
27... f5 {[%clk 0:01:50.1]} 28. Ra5 {[%clk 0:01:18.6]} 28... Rd6 {[%clk
0:01:49.6]} 29. Ke2 {[%clk 0:01:13.4]} 29... Kf7 {[%clk 0:01:45.6]} 30. f3
{[%clk 0:01:08.9]} 30... exf3+ {[%clk 0:01:45.3]} 31. Kxf3 {[%clk 0:01:05.4]}
31... a6 {[%clk 0:01:41.2]} 32. Ne2 {[%clk 0:00:47.2]} 32... Kf6 {[%clk
0:01:35.4]} 33. h4 {[%clk 0:00:47.8]} 33... Re7 {[%clk 0:01:27.3]} 34. Nf4
{[%clk 0:00:47.8]} 34... Re5 {[%clk 0:01:27.8]} 35. Ra4 {[%clk 0:00:42]} 35...
Rc5 {[%clk 0:01:28]} 36. b4 {[%clk 0:00:34.5]} 36... Rc3 {[%clk 0:01:17.7]} 37.
Ra5 {[%clk 0:00:33.9]} 37... g5 {[%clk 0:01:11]} 38. Nd5+ {[%clk 0:00:32.2]}
38... Rxd5 {[%clk 0:01:07.2]} 39. Rxd5 {[%clk 0:00:34.1]} 39... g4+ {[%clk
0:01:08]} 40. Kf4 {[%clk 0:00:24.2]} 40... Rc4+ {[%clk 0:01:08.8]} 41. Rd4
{[%clk 0:00:24.1]} 41... Rc2 {[%clk 0:01:08.9]} 42. Rd6+ {[%clk 0:00:24.4]}
42... Ke7 {[%clk 0:01:10]} 43. Rxa6 {[%clk 0:00:26.3]} 43... Rxg2 {[%clk
0:01:09.7]} 44. Kxf5 {[%clk 0:00:27.8]} 44... Rb2 {[%clk 0:01:07.3]} 45. a3
{[%clk 0:00:26.8]} 45... g3 {[%clk 0:01:08]} 46. Rg6 {[%clk 0:00:27.2]} 46... g2
{[%clk 0:01:09]} 47. Kf4 {[%clk 0:00:27.4]} 47... Rf2+ {[%clk 0:01:08.5]} 48.
Ke4 {[%clk 0:00:28.6]} 48... Kf7 {[%clk 0:01:10]} 49. Rg5 {[%clk 0:00:29.7]}
49... Kf6 {[%clk 0:01:11.3]} 50. b5 {[%clk 0:00:30.1]} 50... Ra2 {[%clk
0:01:02.3]} 51. Kf3 {[%clk 0:00:26.9]} 51... Rxa3 {[%clk 0:00:56.9]} 52. Rxg2
{[%clk 0:00:28.1]} 52... Rb3 {[%clk 0:00:57.2]} 53. Rg5 {[%clk 0:00:29.3]} 53...
Rb4 {[%clk 0:00:58.5]} 54. Rxh5 {[%clk 0:00:29.6]} 54... Kg6 {[%clk 0:00:59.8]}
55. Rg5+ {[%clk 0:00:30.9]} 55... Kf6 {[%clk 0:01:01]} 56. Kg3 {[%clk 0:00:30]}
56... Re4 {[%clk 0:01:01.9]} 57. Kf3 {[%clk 0:00:15.9]} 57... Rxh4 {[%clk
0:01:00.8]} 58. Rc5 {[%clk 0:00:17.4]} 58... Rb4 {[%clk 0:01:02.4]} 59. e4
{[%clk 0:00:17.6]} 59... Ke6 {[%clk 0:01:02.8]} 60. Kf4 {[%clk 0:00:18.4]} 60...
Rb1 {[%clk 0:01:04.4]} 61. Rc6+ {[%clk 0:00:18.8]} 61... Kd7 {[%clk 0:01:05.9]}
62. Rc5 {[%clk 0:00:14.8]} 62... Kd6 {[%clk 0:01:05.8]} 63. Rd5+ {[%clk
0:00:14.7]} 63... Ke6 {[%clk 0:01:07.3]} 64. Re5+ {[%clk 0:00:11.3]} 64... Kd6
{[%clk 0:01:03.8]} 65. Rd5+ {[%clk 0:00:11.9]} 65... Ke6 {[%clk 0:01:04.5]} 66.
Ke3 {[%clk 0:00:13.4]} 66... Rb3+ {[%clk 0:01:03.2]} 67. Kd4 {[%clk 0:00:13.4]}
67... Rb4+ {[%clk 0:01:03.8]} 68. Kc5 {[%clk 0:00:14.8]} 68... Rxe4 {[%clk
0:01:04.7]} 69. b6 {[%clk 0:00:13.2]} 69... Re1 {[%clk 0:01:06.2]} 70. Rd2
{[%clk 0:00:09.6]} 70... Rb1 {[%clk 0:01:03.6]} 71. Kc6 {[%clk 0:00:10.1]} 71...
Rb3 {[%clk 0:01:04.9]} 72. Kc7 {[%clk 0:00:10.5]} 72... Rb1 {[%clk 0:01:06.3]}
73. b7 {[%clk 0:00:11.8]} 73... Rc1+ {[%clk 0:01:06.9]} 74. Kb8 {[%clk
0:00:12.8]} 74... Ra1 {[%clk 0:01:02.7]} 75. Kc8 {[%clk 0:00:13.4]} 75... Rc1+
{[%clk 0:01:02.7]} 76. Kd8 {[%clk 0:00:14.2]} 76... Rb1 {[%clk 0:01:03.2]} 77.
Kc8 {[%clk 0:00:15.7]} 77... Rc1+ {[%clk 0:01:03.2]} 78. Kb8 {[%clk 0:00:17.2]}
78... Ra1 {[%clk 0:01:02.3]} 79. Rd3 {[%clk 0:00:10]} 79... Ra2 {[%clk
0:00:59.8]} 80. Rd1 {[%clk 0:00:08.9]} 80... Ra3 {[%clk 0:00:59.6]} 81. Kc7
{[%clk 0:00:07.7]} 81... Rc3+ {[%clk 0:00:59.6]} 82. Kd8 {[%clk 0:00:08]} 82...
Rb3 {[%clk 0:00:59.1]} 83. Rd7 {[%clk 0:00:08.9]} 83... Rb1 {[%clk 0:00:48.8]}
84. Kc8 {[%clk 0:00:09.9]} 84... Rc1+ {[%clk 0:00:49.7]} 85. Rc7 {[%clk
0:00:11.3]} 85... Rf1 {[%clk 0:00:47.5]} 86. b8=Q {[%clk 0:00:10.9]} 1-0